bitfinex/quotes_ETHUSD_20251004
["timestamp","ask_amount","ask_price","bid_price","bid_amount"]
[1759609012229,0.002,4475.4,4475.3,30.61000427]
[1759609017549,0.002,4475.4,4475.3,54.24905427]
[1759609017752,0.002,4475.4,4475.3,51.87501127]
[1759609018124,0.002,4475.4,4475.3,51.58421127]
[1759609018463,0.002,4475.4,4475.3,25.51156027]
[1759609018649,0.002,4475.4,4475.3,25.62356027]
[1759609018955,0.002,4475.4,4475.3,51.33938427]
[1759609019127,0.002,4475.4,4475.3,50.68127327]
[1759609019559,0.002,4475.4,4475.3,50.49501827]
[1759609020335,0.002,4475.4,4475.3,50.20400327]
[1759609020726,0.002,4475.4,4475.3,49.48737227]
[1759609021626,0.002,4475.4,4475.3,49.70294427]
[1759609021826,0.012,4475.9,4475.3,49.70294427]
[1759609021827,0.012,4475.9,4475.8,2.86783745]
[1759609022152,0.012,4475.9,4475.8,8.48975729]
[1759609022338,0.012,4475.9,4475.8,32.72390792]
[1759609022541,0.012,4475.9,4475.8,47.93890122]
[1759609022740,0.012,4475.9,4475.8,48.59892722]
[1759609022941,0.012,4475.9,4475.8,48.87928775]
[1759609023248,23.266316,4476.0,4475.9,5.26778753]
[1759609023453,23.266316,4476.0,4475.9,41.53801652]
[1759609023828,23.266316,4476.0,4475.9,56.03801652]
[1759609024028,23.266316,4476.0,4475.9,56.70840982]
[1759609024459,23.266316,4476.0,4475.9,55.51016034]
[1759609025140,0.01,4476.9,4476.7,0.6336]
[1759609025342,0.01,4476.9,4476.8,15.53630338]
[1759609025530,0.01,4476.9,4476.8,16.36020943]
[1759609025726,0.01,4476.9,4476.8,30.86020943]
[1759609025940,0.4478,4476.9,4476.8,30.06196538]
[1759609026142,0.01,4476.9,4476.8,22.30464838]
[1759609026373,0.01,4476.9,4476.8,30.80745438]
[1759609026571,0.4478,4476.9,4476.8,30.80745438]
[1759609026940,0.4478,4476.9,4476.8,31.47769491]
[1759609027375,0.4478,4476.9,4476.8,37.58971764]
[1759609027541,0.4478,4476.9,4476.8,21.36966873]
[1759609027741,0.4478,4476.9,4476.8,22.40805838]
[1759609028159,0.4478,4476.9,4476.8,17.66032]
[1759609028479,0.4478,4476.9,4476.8,22.40805838]
[1759609028881,0.4478,4476.9,4476.8,24.52306638]
[1759609029066,0.4478,4476.9,4476.8,22.28133838]
[1759609029642,0.4478,4476.9,4476.8,23.07797617]
[1759609030477,0.4478,4476.9,4476.8,22.28133838]
[1759609030948,0.4478,4476.9,4476.8,23.07781488]
[1759609031148,0.4478,4476.9,4476.8,7.78133838]
[1759609031349,0.4478,4476.9,4476.8,8.57773906]
[1759609031564,0.4478,4476.9,4476.8,7.78133838]
[1759609031746,0.4478,4476.9,4476.8,22.28133838]
[1759609032146,0.4478,4476.9,4476.8,27.25997238]
[1759609032374,0.4478,4476.9,4476.8,28.0563107]
[1759609033082,0.4478,4476.9,4476.8,27.26157238]
[1759609033381,0.4478,4476.9,4476.8,28.05790485]
[1759609033681,0.01,4476.9,4476.8,28.33826538]
[1759609033882,0.01,4476.9,4476.8,30.61588436]
[1759609034088,0.01,4476.9,4476.8,24.83931789]
[1759609034383,0.012,4476.9,4476.8,36.24730563]
[1759609034593,0.012,4476.9,4476.8,35.45096289]
[1759609034886,0.012,4476.9,4476.8,35.88876289]
[1759609035257,0.012,4476.9,4476.8,35.98876289]
[1759609035984,0.012,4476.9,4476.8,35.70840236]
[1759609036184,0.012,4476.9,4476.8,36.42903636]
[1759609036388,0.012,4476.9,4476.8,36.23126436]
[1759609037160,0.012,4476.9,4476.8,36.51072789]
[1759609038290,0.012,4476.9,4476.8,36.50625289]
[1759609040095,0.4498,4476.9,4476.8,25.61654691]
[1759609040291,0.4498,4476.9,4476.8,29.41096791]
[1759609040892,0.4498,4476.9,4476.8,28.99810491]
[1759609041186,0.4498,4476.9,4476.8,28.68096791]
[1759609041486,0.4498,4476.9,4476.8,28.76524091]
[1759609042289,0.4498,4476.9,4476.8,28.72343291]
[1759609042489,0.4498,4476.9,4476.8,28.35437891]
[1759609043022,0.4498,4476.9,4476.8,23.11149891]
[1759609043229,0.4498,4476.9,4476.8,25.23992691]
[1759609043530,0.4498,4476.9,4476.8,25.26430191]
[1759609044328,0.4498,4476.9,4476.8,25.27372391]
[1759609045426,0.4498,4476.9,4476.8,26.25523391]
[1759609046306,0.4498,4476.9,4476.8,23.11149891]
[1759609046505,0.4498,4476.9,4476.8,26.15481991]
[1759609047405,0.4498,4476.9,4476.8,28.18434091]
[1759609047632,0.4498,4476.9,4476.8,27.85200591]
[1759609047932,0.4498,4476.9,4476.8,27.47666691]
[1759609048233,0.4498,4476.9,4476.8,28.67201564]
[1759609048387,0.4498,4476.9,4476.8,29.70851964]
[1759609049441,0.4498,4476.9,4476.8,24.30684764]
[1759609049626,0.4498,4476.9,4476.8,29.70041964]
[1759609050145,0.4498,4476.9,4476.8,28.50507091]
[1759609050592,0.4498,4476.9,4476.8,29.48891391]
[1759609050791,0.4498,4476.9,4476.8,29.48871391]
[1759609051232,0.4498,4476.9,4476.8,29.48891391]
[1759609052212,0.4498,4476.9,4476.8,29.49771391]
[1759609052417,0.4498,4476.9,4476.8,29.82616191]
[1759609052615,0.012,4476.9,4476.8,29.54832191]
[1759609052811,0.012,4476.9,4476.8,29.48932191]
[1759609054001,0.012,4476.9,4476.8,29.88118591]
[1759609054323,0.012,4476.9,4476.8,29.48932191]
[1759609055036,0.012,4476.9,4476.8,29.01934191]
[1759609055966,0.012,4476.9,4476.8,20.59749891]
[1759609056114,0.4659,4476.9,4476.8,22.83013838]
[1759609057232,0.012,4476.9,4476.8,15.6834]
[1759609057432,0.4659,4476.9,4476.6,1.20073839]
[1759609057639,0.4539,4476.8,4476.7,2.513]
[1759609058251,0.4539,4476.8,4476.7,4.913]
[1759609058459,0.4539,4476.8,4476.7,5.7129737]
[1759609060429,0.4539,4476.8,4476.7,4.913]
[1759609068967,2.68763838,4476.8,4476.7,4.913]
[1759609069657,0.4539,4476.8,4476.7,4.913]
[1759609069859,2.68763838,4476.8,4476.7,4.913]
[1759609070870,2.68763838,4476.8,4476.2,1.20073839]
[1759609070871,2.23378828,4476.7,4476.4,0.7999737]
[1759609071052,2.23378828,4476.7,4476.2,0.9119737]
[1759609071053,2.23393798,4476.4,4476.2,0.9119737]
[1759609071262,2.23393798,4476.4,4476.3,4.914]
[1759609071730,2.68113798,4476.4,4476.3,4.914]
[1759609074070,0.4472,4476.4,4476.0,0.001]
[1759609074271,2.24572915,4476.9,4476.0,0.001]
[1759609074272,2.23408771,4476.1,4476.0,0.001]
[1759609074783,2.79328771,4476.1,4476.0,0.001]
[1759609077287,5.30728771,4476.1,4476.0,0.001]
[1759609077588,2.79328771,4476.1,4476.0,0.001]
[1759609083198,5.30728771,4476.1,4476.0,0.001]
[1759609089897,0.112,4476.1,4476.0,0.001]
[1759609090396,2.34608771,4476.1,4476.0,0.001]
[1759609093713,0.112,4476.1,4476.0,0.001]
[1759609094565,0.112,4476.4,4476.0,0.2918]
[1759609095667,0.112,4476.4,4476.0,0.001]
[1759609095870,0.002,4476.5,4476.1,0.2908]
[1759609096086,0.002,4476.5,4476.2,0.2908]
[1759609096289,0.002,4476.5,4476.1,0.2908]
[1759609096802,0.002,4476.5,4476.2,0.2908]
[1759609099121,0.002,4476.5,4476.0,3.16671745]
[1759609099318,0.002,4476.5,4476.1,0.2908]
[1759609100209,2.23590196,4476.5,4476.0,2.87591745]
[1759609100420,0.002,4476.5,4476.0,2.87591745]
[1759609100611,0.002,4476.5,4476.1,0.88269143]
[1759609103951,2.23588867,4476.5,4476.1,0.88269143]
[1759609104450,0.002,4476.5,4476.2,2.4]
[1759609104645,0.002,4476.5,4476.3,2.514]
[1759609107669,0.002,4476.5,4476.4,2.4]
[1759609112263,0.002,4476.5,4476.4,4.74593798]
[1759609112976,0.002,4476.5,4476.4,2.512]
[1759609113665,0.002,4476.5,4476.4,4.74593798]
[1759609114073,0.002,4476.5,4476.4,2.512]
[1759609116091,0.002,4476.5,4476.4,4.74593798]
[1759609116263,0.002,4476.5,4476.4,7.02355696]
[1759609118747,0.002,4476.5,4476.4,7.82353066]
[1759609119347,0.002,4476.5,4476.4,7.02355696]
[1759609119769,0.002,4476.5,4476.4,4.74593798]
[1759609120176,0.002,4476.5,4476.4,5.67553126]
[1759609120379,0.002,4476.5,4476.4,6.76630496]
[1759609120682,0.002,4476.5,4476.4,5.96633126]
[1759609121183,0.002,4476.5,4476.4,5.67553126]
[1759609121371,0.002,4476.5,4476.4,7.95315024]
[1759609123593,0.002,4476.5,4476.4,22.45315024]
[1759609124460,0.002,4477.0,4476.9,5.26728848]
[1759609124656,0.4565,4478.1,4477.6,2.23332421]
[1759609124989,0.4565,4478.1,4477.7,2.53733289]
[1759609125189,0.4565,4478.1,4477.8,4.74823953]
[1759609125598,0.4565,4478.4,4477.8,7.78183953]
[1759609127279,2.23284171,4478.6,4477.8,7.78183953]
[1759609127506,0.01,4478.9,4477.8,10.53429181]
[1759609127682,0.4565,4478.6,4477.8,10.53429181]
[1759609127885,0.4565,4478.6,4477.8,26.23287162]
[1759609128087,0.4565,4478.6,4477.8,28.5104906]
[1759609128393,0.4565,4478.6,4477.8,27.31191079]
[1759609128626,0.4565,4478.6,4477.8,29.08321579]
[1759609129488,0.4565,4478.6,4477.8,30.41383379]
[1759609129827,0.4565,4478.6,4477.8,30.70463379]
[1759609130526,0.4565,4478.6,4477.8,31.21240379]
[1759609130835,0.4565,4478.6,4477.8,30.90557079]
[1759609131326,0.4565,4478.6,4477.8,31.70119044]
[1759609131525,0.4565,4478.6,4477.8,32.00252544]
[1759609131835,0.4565,4478.6,4477.8,31.41039044]
[1759609133348,0.4565,4478.6,4477.8,30.61477079]
[1759609133494,0.4565,4478.6,4477.8,24.85545179]
[1759609133823,0.4565,4478.6,4477.8,31.11241679]
[1759609134128,0.4565,4478.6,4477.8,30.80415679]
[1759609134429,0.4565,4478.6,4477.8,31.20695679]
[1759609134729,0.4565,4478.6,4477.8,31.51580379]
[1759609135457,0.4565,4478.6,4477.8,31.22927479]
[1759609135662,0.4565,4478.6,4477.8,31.21853379]
[1759609135863,0.4565,4478.6,4477.8,30.93847479]
[1759609136067,0.4565,4478.6,4477.8,31.22927479]
[1759609136278,0.4565,4478.6,4477.8,30.93847479]
[1759609136477,0.01,4478.9,4477.8,30.73417479]
[1759609136775,0.4655,4478.8,4477.8,30.00309879]
[1759609136974,0.4655,4478.3,4477.8,30.00309879]
[1759609137539,0.4655,4478.3,4477.8,28.35913779]
[1759609137775,0.4655,4478.2,4477.8,24.96745179]
[1759609137948,0.4655,4478.2,4477.8,29.48849279]
[1759609138644,0.01,4478.9,4477.8,30.08898979]
[1759609138846,0.4655,4478.6,4477.8,30.08898979]
[1759609139189,0.01,4478.9,4477.8,29.53661779]
[1759609139355,0.4655,4478.4,4477.8,29.53661779]
[1759609139549,0.4655,4478.4,4477.8,24.96745179]
[1759609139748,0.4655,4478.4,4477.8,29.65846679]
[1759609140623,0.4655,4478.4,4477.8,31.20572879]
[1759609140950,0.4655,4478.4,4477.8,30.81667179]
[1759609141680,0.4655,4478.4,4477.8,24.96745179]
[1759609141886,0.4655,4478.4,4477.8,30.81667179]
[1759609142889,0.012,4477.9,4477.8,31.47693579]
[1759609143093,0.012,4477.9,4477.8,31.11207179]
[1759609143263,0.012,4477.9,4477.8,24.96745179]
[1759609143598,0.4775,4477.9,4477.8,26.97241379]
[1759609143754,0.012,4477.9,4477.8,24.96745179]
[1759609144051,0.012,4477.9,4477.8,30.14514679]
[1759609144888,0.012,4477.9,4477.8,30.30597379]
[1759609145182,0.012,4477.9,4477.8,24.96745179]
[1759609146199,0.012,4477.9,4477.8,25.76307144]
[1759609147311,0.012,4477.9,4477.8,23.24807144]
[1759609147465,0.012,4477.9,4477.8,28.60904444]
[1759609148390,0.012,4477.9,4477.8,27.81342479]
[1759609148570,0.012,4477.9,4477.8,27.37515579]
[1759609149492,0.012,4477.9,4477.8,24.96645179]
[1759609149695,0.012,4477.9,4477.8,28.10083479]
[1759609150606,0.012,4477.9,4477.8,29.29371479]
[1759609150924,0.012,4477.9,4477.8,28.95778679]
[1759609151275,0.012,4477.9,4477.8,28.45194279]
[1759609151507,0.012,4477.9,4477.8,28.10083479]
[1759609151703,0.012,4477.9,4477.8,28.50794779]
[1759609152227,0.012,4477.9,4477.8,26.1650316]
[1759609152405,0.012,4477.9,4477.8,24.96645179]
[1759609153318,0.012,4477.9,4477.8,28.1802886]
[1759609153525,0.012,4477.9,4477.8,26.1650316]
[1759609154251,0.012,4477.9,4477.8,24.96645179]
[1759609158726,0.012,4477.9,4477.8,27.16807779]
[1759609159745,0.012,4477.9,4477.8,27.19039979]
[1759609160666,0.012,4477.9,4477.8,24.67639979]
[1759609160959,0.4749,4477.9,4477.8,19.526]
[1759609161518,0.4749,4477.9,4477.8,20.1596]
[1759609164991,0.4749,4477.9,4477.8,22.39283953]
[1759609167190,0.4749,4477.9,4477.8,20.1596]
[1759609168286,0.4749,4477.9,4477.8,22.39283953]
[1759609168988,0.4749,4477.9,4477.8,20.1596]
[1759609169985,0.4749,4477.9,4477.8,5.6596]
[1759609170281,0.4749,4477.9,4477.8,7.89283953]
[1759609170484,0.4749,4477.9,4477.8,5.6596]
[1759609170985,0.4749,4477.9,4477.8,7.89283953]
[1759609171884,0.4749,4477.9,4477.8,5.6596]
[1759609173308,0.4749,4477.9,4477.8,1.311455]
[1759609173309,0.4524,4477.9,4477.8,1.311455]
[1759609173458,0.4524,4477.9,4477.8,2.514]
[1759609174212,2.68558966,4477.9,4477.8,2.514]
[1759609178448,0.4524,4477.9,4477.6,0.112]
[1759609178742,0.112,4477.7,4477.4,2.515]
[1759609178964,2.23338916,4477.5,4477.4,2.516]
[1759609179094,2.23356868,4477.2,4477.0,0.113]
[1759609179294,2.23356868,4477.2,4477.1,2.516]
[1759609179553,0.4404,4477.2,4477.1,2.516]
[1759609179895,2.67393881,4477.2,4477.1,2.516]
[1759609180345,0.4404,4477.2,4477.1,2.516]
[1759609182939,2.67393881,4477.2,4477.1,2.516]
[1759609184837,0.4404,4477.2,4477.1,2.516]
[1759609185141,2.67393881,4477.2,4477.1,2.516]
[1759609185338,0.4404,4477.2,4477.1,2.516]
[1759609186136,2.67393881,4477.2,4477.1,2.516]
[1759609191353,0.4404,4477.2,4477.1,2.516]
[1759609193459,2.23343774,4477.5,4477.1,2.516]
[1759609193793,2.66653934,4477.4,4477.1,2.516]
[1759609193975,2.66660445,4477.3,4477.1,2.516]
[1759609194178,2.23353881,4477.2,4477.1,2.516]
[1759609196717,2.23349946,4477.3,4477.1,2.516]
[1759609197111,2.66659946,4477.3,4477.1,2.516]
[1759609197324,0.002,4477.2,4477.1,2.516]
[1759609197984,2.23554713,4477.2,4477.0,0.113]
[1759609198191,2.66864713,4477.2,4477.1,2.516]
[1759609199310,2.66864713,4477.2,4477.0,0.113]
[1759609199490,2.66864713,4477.2,4477.1,2.516]
[1759609200091,0.4351,4477.2,4477.1,2.516]
[1759609200294,2.66863881,4477.2,4477.1,2.516]
[1759609201612,2.23553881,4477.2,4477.1,2.516]
[1759609202113,2.66863881,4477.2,4477.1,2.516]
[1759609202343,0.002,4477.2,4477.1,2.516]
[1759609203226,0.002,4477.2,4477.1,7.30793753]
[1759609203386,0.002,4477.2,4477.1,6.48577742]
[1759609204019,0.002,4477.2,4477.1,0.40379544]
[1759609204222,0.002,4477.2,4477.1,3.31551235]
[1759609206432,0.002,4477.2,4477.1,2.517]
[1759609207594,0.002,4477.2,4477.1,4.7505887]
[1759609208322,0.002,4477.2,4477.1,19.2505887]
[1759609209630,0.002,4477.2,4477.1,17.017]
[1759609210441,0.002,4477.2,4477.1,19.2505887]
[1759609211035,0.002,4477.2,4477.1,4.7505887]
[1759609213142,0.002,4477.2,4477.1,19.08137677]
[1759609213301,0.002,4477.2,4477.1,17.74628946]
[1759609213501,0.002,4477.2,4477.1,16.68750646]
[1759609213701,0.002,4477.2,4477.1,31.18750646]
[1759609214240,0.002,4477.2,4477.1,32.59326346]
[1759609214422,0.002,4477.2,4477.1,28.00961546]
[1759609215200,0.002,4477.2,4477.1,24.94045646]
[1759609215505,0.002,4477.2,4477.1,27.64461346]
[1759609216462,0.002,4477.2,4477.1,27.64483846]
[1759609216845,0.002,4477.2,4477.1,24.94045646]
[1759609217146,0.002,4477.2,4477.1,27.73685846]
[1759609217347,0.002,4477.2,4477.1,40.42006246]
[1759609217494,0.002,4477.2,4477.1,40.21133846]
[1759609217736,0.002,4477.2,4477.1,31.25356446]
[1759609218342,0.002,4477.2,4477.1,33.77528346]
[1759609219307,0.002,4477.2,4477.1,24.94045646]
[1759609219441,0.002,4477.2,4477.1,35.78799046]
[1759609219642,0.002,4477.2,4477.1,34.48099046]
[1759609219842,0.002,4477.2,4477.1,34.01528646]
[1759609220181,0.002,4477.2,4477.1,32.57528646]
[1759609220480,0.002,4477.2,4477.1,32.70999446]
[1759609221259,0.002,4477.2,4477.1,24.94045646]
[1759609221482,0.002,4477.2,4477.1,35.92638646]
[1759609222487,0.002,4477.2,4477.1,49.87703346]
[1759609223554,0.002,4477.2,4477.1,50.37500546]
[1759609223850,0.002,4477.2,4477.1,50.01076346]
[1759609224358,0.002,4477.2,4477.1,50.55431046]
[1759609224568,0.002,4477.2,4477.1,50.16621146]
[1759609224960,0.002,4477.2,4477.1,49.83196246]
[1759609225505,0.002,4477.2,4477.1,51.60070946]
[1759609225711,0.002,4477.2,4477.1,51.28673446]
[1759609226408,0.002,4477.2,4477.1,24.94045646]
[1759609226573,0.002,4477.2,4477.1,52.36167946]
[1759609227285,0.002,4477.2,4477.1,51.56716646]
[1759609227502,0.002,4477.2,4477.1,51.16167946]
[1759609228612,0.002,4477.2,4477.1,51.56767746]
[1759609228798,0.002,4477.2,4477.1,50.98947246]
[1759609229027,0.002,4477.2,4477.1,50.31251746]
[1759609229189,0.002,4477.2,4477.1,49.90768046]
[1759609229592,0.002,4477.2,4477.1,50.59236146]
[1759609229793,0.002,4477.2,4477.1,50.18687546]
[1759609230612,0.002,4477.2,4477.1,24.64965646]
[1759609230804,0.002,4477.2,4477.1,50.19187546]
[1759609230987,0.002,4477.2,4477.1,29.24095846]
[1759609231195,0.002,4477.2,4477.1,27.85446505]
[1759609231610,0.002,4477.2,4477.1,30.35865405]
[1759609232279,0.002,4477.2,4477.1,29.07937705]
[1759609232827,0.002,4477.2,4477.1,28.66740005]
[1759609233606,0.002,4477.2,4477.1,31.79108705]
[1759609233809,0.002,4477.2,4477.1,29.93808905]
[1759609234635,0.002,4477.2,4477.1,29.53157805]
[1759609235833,0.002,4477.2,4477.1,30.88776305]
[1759609236131,0.002,4477.2,4477.1,30.20331705]
[1759609236699,0.002,4477.2,4477.1,24.36022705]
[1759609236932,0.002,4477.2,4477.1,30.95240605]
[1759609237139,0.002,4477.2,4477.1,30.63129005]
[1759609237432,0.002,4477.2,4477.1,30.19392305]
[1759609237836,0.002,4477.2,4477.1,30.96609605]
[1759609238138,0.002,4477.2,4477.1,30.65461305]
[1759609238925,0.002,4477.2,4477.1,30.65309405]
[1759609239139,0.447,4477.2,4477.1,25.15017977]
[1759609239504,0.447,4477.2,4477.1,25.78377977]
[1759609242006,0.447,4477.2,4477.1,23.26877977]
[1759609242200,0.447,4477.2,4477.1,9.13113377]
[1759609242650,0.447,4477.2,4477.1,7.8941887]
[1759609242797,0.447,4477.2,4477.1,22.3941887]
[1759609244640,0.447,4477.2,4477.1,24.6588147]
[1759609245753,0.447,4477.2,4477.1,10.1588147]
[1759609246336,0.447,4477.2,4477.1,24.6588147]
[1759609246550,0.447,4477.2,4477.1,22.3941887]
[1759609246698,0.447,4477.2,4477.1,24.6560097]
[1759609246898,0.447,4477.2,4477.1,22.3941887]
[1759609249389,0.447,4477.2,4477.1,7.8941887]
[1759609249884,0.447,4477.2,4477.1,22.3941887]
[1759609251275,0.447,4477.2,4477.1,30.10133568]
[1759609253181,0.002,4477.2,4477.1,43.16047768]
[1759609253385,0.002,4477.2,4477.1,43.15594296]
[1759609253846,0.002,4477.2,4477.1,42.57553596]
[1759609254345,0.002,4477.2,4477.1,42.45075396]
[1759609256381,0.002,4477.2,4477.1,42.83490896]
[1759609257291,0.002,4477.2,4477.1,43.07826196]
[1759609257495,0.002,4477.2,4477.1,42.70172196]
[1759609258172,0.002,4477.2,4477.1,42.48846396]
[1759609259305,0.002,4477.2,4477.1,24.96780096]
[1759609259483,0.002,4477.2,4477.1,42.48846396]
[1759609260419,0.002,4477.2,4477.1,42.82024196]
[1759609260570,0.002,4477.2,4477.1,42.48846396]
[1759609261468,0.002,4477.2,4477.1,43.09375337]
[1759609261668,0.002,4477.2,4477.1,44.6945393]
[1759609262412,0.002,4477.2,4477.1,46.0625983]
[1759609263109,0.002,4477.7,4477.6,2.23333928]
[1759609263310,0.002,4477.7,4477.6,21.00556383]
[1759609263509,0.002,4477.7,4477.6,20.98323044]
[1759609263824,0.002,4477.7,4477.6,35.17693044]
[1759609264708,0.002,4477.7,4477.6,32.40811944]
[1759609270144,0.002,4477.7,4477.6,32.11212616]
[1759609270548,0.002,4477.7,4477.6,52.15158716]
[1759609270726,0.002,4477.7,4477.6,51.11894316]
[1759609271049,0.002,4477.7,4477.6,50.81264316]
[1759609271225,0.002,4477.7,4477.6,43.86469644]
[1759609272649,0.4718,4477.7,4477.6,39.93069644]
[1759609273824,0.4718,4477.7,4477.6,40.23728744]
[1759609274948,0.4718,4477.7,4477.6,23.13660744]
[1759609275156,0.4718,4477.7,4477.6,40.22728744]
[1759609276115,0.4718,4477.7,4477.6,39.93129416]
[1759609276316,0.002,4477.7,4477.6,39.93129416]
[1759609276657,0.002,4477.7,4477.6,39.63470316]
[1759609277055,0.002,4477.7,4477.6,22.84061416]
[1759609277255,0.002,4477.7,4477.6,39.84656316]
[1759609277437,0.002,4477.7,4477.6,40.14255644]
[1759609278270,0.4718,4477.7,4477.6,33.55685844]
[1759609278861,0.4718,4477.7,4477.6,32.67485844]
[1759609279061,0.4718,4477.7,4477.6,32.04269444]
[1759609279265,0.4718,4477.7,4477.6,31.72085844]
[1759609279949,0.4718,4477.7,4477.6,23.13660744]
[1759609281877,0.002,4477.7,4477.6,18.38826816]
[1759609282191,0.4636,4477.7,4477.6,22.84061416]
[1759609284084,0.4636,4477.7,4477.6,8.34061416]
[1759609287785,0.002,4477.7,4477.6,8.63660744]
[1759609288154,0.002,4477.7,4477.6,23.13660744]
[1759609303939,0.002,4477.7,4477.6,39.89172044]
[1759609304141,0.002,4477.7,4477.6,40.46994985]
[1759609304606,0.002,4477.7,4477.6,40.55929549]
[1759609305001,0.002,4477.7,4477.6,47.11773349]
[1759609306239,0.002,4477.7,4477.6,47.40260849]
[1759609307032,0.002,4477.7,4477.6,47.86657249]
[1759609307229,0.012,4477.9,4477.8,3.0336]
[1759609307543,0.012,4477.9,4477.8,28.44380299]
[1759609307909,0.012,4477.9,4477.8,42.94380299]
[1759609308124,0.012,4477.9,4477.8,43.16979399]
[1759609308319,0.012,4477.9,4477.8,41.57214081]
[1759609308655,0.012,4477.9,4477.8,43.84975979]
[1759609308953,0.012,4477.9,4477.8,44.28985979]
[1759609309149,0.012,4477.9,4477.8,46.85376979]
[1759609309357,0.012,4477.9,4477.8,47.1411992]
[1759609309556,0.012,4477.9,4477.8,47.5812992]
[1759609309752,0.012,4477.9,4477.8,47.1411992]
[1759609310248,0.012,4477.9,4477.8,25.1418812]
[1759609310747,0.012,4477.9,4477.8,47.1389312]
[1759609310953,0.012,4477.9,4477.8,46.6609972]
[1759609311655,0.012,4477.9,4477.8,25.1418812]
[1759609311860,0.012,4477.9,4477.8,48.44490538]
[1759609312650,0.012,4477.9,4477.8,56.73953438]
[1759609314254,0.012,4477.9,4477.8,51.85829338]
[1759609314559,0.012,4477.9,4477.8,52.32199338]
[1759609314850,0.012,4477.9,4477.8,56.77853738]
[1759609315876,0.012,4477.9,4477.8,57.20323438]
[1759609316078,0.012,4477.9,4477.8,55.1033772]
[1759609316381,0.012,4477.9,4477.8,56.69974054]
[1759609317183,0.002,4478.1,4478.0,2.86673979]
[1759609317345,0.002,4478.1,4478.0,27.00653916]
[1759609317663,0.002,4478.1,4478.0,34.96364205]
[1759609318041,0.002,4478.1,4478.0,49.46364205]
[1759609318679,0.002,4478.1,4478.0,49.40288205]
[1759609318985,0.002,4478.1,4478.0,44.76594205]
[1759609319344,0.002,4478.1,4478.0,44.21094205]
[1759609319543,0.002,4478.1,4478.0,44.30470405]
[1759609319945,0.002,4478.1,4478.0,44.31970405]
[1759609320481,0.002,4478.1,4478.0,44.22594205]
[1759609321787,0.002,4478.1,4478.0,44.22494205]
[1759609321958,0.002,4478.1,4478.0,52.56535205]
[1759609323317,0.002,4478.1,4478.0,48.59508105]
[1759609323619,0.002,4478.1,4478.0,52.56535205]
[1759609325181,0.01,4478.9,4478.0,52.56535205]
[1759609325182,0.01,4478.9,4478.1,3.0336]
[1759609325385,0.4737,4478.9,4478.8,5.37834091]
[1759609325693,0.4737,4478.9,4478.8,11.35693291]
[1759609326097,0.4737,4478.9,4478.8,25.87168691]
[1759609327116,0.4737,4478.9,4478.8,22.39134091]
[1759609327303,0.122,4479.9,4479.7,0.6336]
[1759609327304,0.01,4479.9,4479.7,0.6336]
[1759609327510,0.01,4479.9,4479.8,2.513]
[1759609328016,0.4737,4479.9,4479.8,2.513]
[1759609328998,0.4737,4479.9,4479.7,0.7456]
[1759609329195,0.01,4479.9,4479.8,2.513]
[1759609329518,0.01,4479.9,4479.8,0.112]
[1759609329682,0.01,4479.9,4479.8,2.625]
[1759609329882,0.4737,4479.9,4479.8,2.625]
[1759609330123,0.4737,4479.9,4479.8,2.64732242]
[1759609334547,0.4737,4479.9,4479.8,2.625]
[1759609334740,0.4737,4479.9,4479.8,0.112]
[1759609334943,0.4737,4479.9,4479.8,3.28092242]
[1759609337846,0.4757,4479.9,4479.8,3.28092242]
[1759609347952,0.4757,4479.9,4479.8,3.2586]
[1759609349592,0.012,4479.9,4479.8,3.2586]
[1759609350399,0.4636,4479.9,4479.8,3.28092242]
[1759609350567,0.4636,4479.9,4479.8,5.51316493]
[1759609350772,0.4636,4479.9,4479.8,5.49084251]
[1759609351560,0.012,4479.9,4479.8,5.49084251]
[1759609351902,0.012,4479.9,4479.8,3.2586]
[1759609352053,0.4636,4479.9,4479.8,5.51316493]
[1759609352251,0.012,4479.9,4479.8,5.49084251]
[1759609352493,0.012,4479.9,4479.8,3.2586]
[1759609352677,0.012,4479.9,4479.8,3.28092242]
[1759609354301,0.012,4479.9,4479.8,4.07818898]
[1759609357402,0.012,4479.9,4479.8,3.28092242]
[1759609357737,0.012,4479.9,4479.8,3.2586]
[1759609358734,0.012,4479.9,4479.8,5.49084251]
[1759609358930,0.012,4479.9,4479.8,2.97784251]
[1759609359137,0.012,4479.9,4479.8,5.49084251]
[1759609360032,0.012,4479.9,4479.8,19.99084251]
[1759609362345,0.012,4479.9,4479.8,17.7586]
[1759609365845,0.012,4479.9,4479.8,19.99084251]
[1759609368170,0.012,4479.9,4479.8,17.7586]
[1759609368668,0.012,4479.9,4479.8,19.99084251]
[1759609370971,0.012,4479.9,4479.8,20.91275526]
[1759609373110,0.012,4479.9,4479.8,31.21162454]
[1759609373410,0.012,4479.9,4479.8,31.88141914]
[1759609373571,0.012,4479.9,4479.8,28.31939114]
[1759609377612,0.012,4479.9,4479.8,28.02859114]
[1759609379213,0.012,4479.9,4479.8,19.23730735]
[1759609379416,0.012,4479.9,4479.8,23.98254986]
[1759609379600,0.4787,4479.9,4479.8,23.98254986]
[1759609380210,0.012,4479.9,4479.8,23.98254986]
[1759609382918,0.4787,4479.9,4479.8,23.98254986]
[1759609383214,0.4787,4479.9,4479.8,25.1784917]
[1759609386304,0.4787,4479.9,4479.8,10.6784917]
[1759609386904,0.4787,4479.9,4479.8,25.1784917]
[1759609387106,0.4787,4479.9,4479.8,25.1774917]